bitfinex-derivatives/quotes_BTCF0:USTF0_20250827
["timestamp","ask_amount","ask_price","bid_price","bid_amount"]
[1756324975344,0.5920334,112010.0,112000.0,0.95015]
[1756324975746,0.5920334,112010.0,112000.0,0.96257]
[1756324975948,0.5597734,112010.0,112000.0,0.95015]
[1756324977050,0.5597734,112010.0,112000.0,0.96257]
[1756324978148,0.1989734,112010.0,112000.0,1.0518413]
[1756324978749,0.1201734,112010.0,112000.0,1.4126413]
[1756324978950,0.1201734,112010.0,112000.0,2.17638161]
[1756324979450,0.0922634,112010.0,112000.0,2.10094235]
[1756324980351,0.0922634,112010.0,112000.0,1.26430235]
[1756324980553,0.0922634,112010.0,112000.0,2.10078235]
[1756324980950,0.1222434,112010.0,112000.0,2.10078235]
[1756324981249,0.1383134,112010.0,112000.0,0.4652013]
[1756324981554,0.1383134,112010.0,112000.0,1.73990235]
[1756324981855,0.0922634,112010.0,112000.0,2.10070235]
[1756324982552,0.1222434,112010.0,112000.0,2.10070235]
[1756324983146,0.0922634,112010.0,112000.0,2.10070235]
[1756324983342,0.10756094,112020.0,112010.0,0.1544334]
[1756324983554,0.13744094,112020.0,112010.0,0.5152334]
[1756324983848,0.15351094,112020.0,112010.0,0.95353445]
[1756324984055,0.15351094,112020.0,112010.0,1.42901445]
[1756324984441,0.19678094,112020.0,112010.0,0.5028134]
[1756324984643,0.63808199,112020.0,112010.0,0.06517]
[1756324985042,0.99888199,112020.0,112010.0,0.88919]
[1756324985247,0.99788199,112020.0,112010.0,0.88919]
[1756324985449,0.99788199,112020.0,112010.0,0.05275]
[1756324985855,0.99788199,112020.0,112010.0,0.85273]
[1756324986050,0.99488199,112020.0,112010.0,0.85273]
[1756324986352,0.99488199,112020.0,112000.0,0.05295]
[1756324986353,0.1074134,112010.0,112000.0,0.05295]
[1756324986554,0.61488445,112010.0,112000.0,0.88971]
[1756324987254,0.61488445,112010.0,112000.0,0.05275]
[1756324987456,0.61488445,112010.0,112000.0,0.88947]
[1756324987853,0.61488445,112010.0,112000.0,0.05375]
[1756324988058,0.61488445,112010.0,112000.0,0.89031]
[1756324988750,0.61488445,112010.0,112000.0,0.05375]
[1756324989050,0.97568445,112010.0,112000.0,0.89007]
[1756324989257,0.97668445,112010.0,112000.0,0.88907]
[1756324989653,0.97668445,112010.0,112000.0,0.05275]
[1756324989854,0.97668445,112010.0,112000.0,0.87016]
[1756324990355,0.1234913,112000.0,111990.0,0.05295]
[1756324990556,0.97569235,112000.0,111990.0,0.88875]
[1756324991251,0.1234993,111990.0,111980.0,0.0539261]
[1756324991458,0.97570035,111990.0,111980.0,0.8714961]
[1756324991655,0.97570035,111990.0,111980.0,0.0355761]
[1756324991955,0.98453949,111990.0,111980.0,0.8714561]
[1756324992457,0.98353949,111990.0,111980.0,0.8714561]
[1756324993355,0.98353949,111990.0,111980.0,0.85365]
[1756324993753,0.98353949,111990.0,111980.0,0.002]
[1756324993948,1.57353949,111990.0,111980.0,0.83748]
[1756324994152,1.25905169,111990.0,111980.0,0.003]
[1756324994352,1.61905169,111990.0,111980.0,0.003]
[1756324994553,1.25905169,111990.0,111980.0,0.003]
[1756324994754,1.56905169,111990.0,111980.0,0.003]
[1756324995059,0.61490825,111980.0,111970.0,0.45352]
[1756324995362,0.97570825,111980.0,111970.0,0.45332]
[1756324995557,0.97570825,111980.0,111970.0,0.46909]
[1756324996062,0.97570825,111980.0,111970.0,0.45332]
[1756324996761,0.97570825,111980.0,111970.0,0.48724]
[1756324996961,0.97570825,111980.0,111970.0,0.48924]
[1756324997167,0.5374072,111980.0,111970.0,0.48924]
[1756324997460,0.5374072,111980.0,111970.0,0.50807]
[1756324997461,0.97570825,111980.0,111970.0,0.50807]
[1756324997657,0.97570825,111980.0,111970.0,0.47109]
[1756324997857,1.03058825,111980.0,111970.0,0.45532]
[1756324998160,1.03058825,111980.0,111970.0,0.002]
[1756324999062,1.03058825,111980.0,111970.0,0.09172]
[1756325001556,1.03058825,111980.0,111970.0,0.11055]
[1756325001762,0.2314871,111980.0,111970.0,0.11055]
[1756325001950,0.2314871,111980.0,111970.0,0.199845]
[1756325002152,0.11065,111980.0,111970.0,0.90056605]
[1756325002462,0.08753,111980.0,111970.0,0.90056605]
[1756325002850,0.06938,111980.0,111970.0,0.462265]
[1756325003259,0.1586671,111980.0,111970.0,0.462265]
[1756325003464,1.03058815,111980.0,111970.0,0.32595]
[1756325003660,1.03058815,111980.0,111970.0,0.30893]
[1756325003862,1.03058815,111980.0,111970.0,0.8382]
[1756325004058,1.03058815,111980.0,111970.0,0.8384]
[1756325004260,1.03058815,111980.0,111970.0,0.002]
[1756325004563,1.03058815,111980.0,111970.0,0.83844]
[1756325004864,1.03058815,111980.0,111970.0,0.87123]
[1756325005161,1.03058815,111980.0,111970.0,0.91001]
[1756325005162,0.5922871,111980.0,111970.0,0.91001]
[1756325005365,1.03058815,111980.0,111970.0,0.94699]
[1756325005767,1.03058815,111980.0,111970.0,0.95941]
[1756325005768,0.66978815,111980.0,111970.0,0.95941]
[1756325005967,0.66978815,111980.0,111970.0,0.94699]
[1756325006367,0.66978815,111980.0,111970.0,0.95941]
[1756325007063,1.03058815,111980.0,111970.0,0.11055]
[1756325007269,1.03058815,111980.0,111970.0,0.92816]
[1756325008369,1.03058815,111980.0,111970.0,0.94699]
[1756325008370,0.5922871,111980.0,111970.0,0.94699]
[1756325008570,0.2314871,111980.0,111970.0,0.94699]
[1756325008770,0.66978815,111980.0,111970.0,0.94699]
[1756325008968,0.5922871,111980.0,111970.0,0.95941]
[1756325009268,0.5376171,111980.0,111970.0,0.95941]
[1756325009569,1.03536815,111980.0,111970.0,0.95977]
[1756325010064,0.2362671,111980.0,111970.0,0.95977]
[1756325010668,0.67456815,111980.0,111970.0,0.95977]
[1756325011258,1.03536815,111980.0,111970.0,0.94735]
[1756325011462,1.03536815,111980.0,111970.0,0.11055]
[1756325011667,1.03536815,111980.0,111970.0,0.94827]
[1756325012058,1.03536815,111980.0,111970.0,0.94831]
[1756325012871,0.67456815,111980.0,111970.0,0.94831]
[1756325013075,1.03536815,111980.0,111970.0,0.94831]
[1756325013269,1.03536815,111980.0,111970.0,0.11059]
[1756325013465,0.67456815,111980.0,111970.0,0.94831]
[1756325013860,0.67456815,111980.0,111970.0,1.0500251]
[1756325014072,0.1353371,111980.0,111970.0,1.73832615]
[1756325014573,0.1353371,111980.0,111970.0,1.64903105]
[1756325014774,0.1701871,111980.0,111970.0,1.21073]
[1756325014968,0.1947871,111980.0,111970.0,1.21073]
[1756325015162,0.1947871,111980.0,111970.0,1.3000251]
[1756325015565,0.1353371,111980.0,111970.0,1.3000251]
[1756325015974,0.1947871,111980.0,111970.0,1.3000251]
[1756325016174,0.1353371,111980.0,111970.0,1.73832615]
[1756325016474,0.1353371,111980.0,111970.0,1.3000251]
[1756325017564,0.67349815,111980.0,111970.0,0.91452]
[1756325017774,1.03429815,111980.0,111970.0,0.94652]
[1756325018271,1.03429815,111980.0,111970.0,0.90954]
[1756325018882,1.65429815,111980.0,111970.0,0.00204]
[1756325019379,1.6798211,111980.0,111970.0,0.00204]
[1756325020279,0.2335751,111970.0,111960.0,0.837]
[1756325020480,1.4281991,111970.0,111960.0,0.8368]
[1756325020673,1.44783431,111970.0,111960.0,0.8368]
[1756325021582,0.146083,111960.0,111950.0,0.07087]
[1756325021774,1.03268405,111960.0,111950.0,0.05413]
[1756325021982,1.03268405,111960.0,111940.0,0.01835]
[1756325021983,0.233591,111950.0,111940.0,0.08902]
[1756325022285,1.03269205,111950.0,111940.0,0.9257]
[1756325022877,1.04165542,111950.0,111940.0,0.94406]
[1756325023284,1.04165542,111950.0,111940.0,0.07067]
[1756325023485,1.04165542,111950.0,111940.0,0.90875]
[1756325023678,1.04165542,111950.0,111940.0,0.9269]
[1756325023874,1.04165542,111950.0,111940.0,0.87659]
[1756325024074,1.04165542,111950.0,111940.0,0.90875]
[1756325024278,1.11424461,111950.0,111940.0,0.90943]
[1756325024482,1.11424461,111950.0,111940.0,0.07067]
[1756325024683,1.11424461,111950.0,111940.0,0.90943]
[1756325024991,0.1768189,111940.0,111930.0,2.53668]
[1756325025189,0.61511995,111940.0,111930.0,2.58679]
[1756325025491,0.67189995,111940.0,111930.0,0.92774]
[1756325025891,1.03269995,111940.0,111930.0,0.05666]
[1756325026087,1.03269995,111940.0,111930.0,0.87903]
[1756325026282,1.03269995,111940.0,111920.0,0.0002]
[1756325026283,1.733607,111930.0,111920.0,0.0002]
[1756325026592,1.03270805,111930.0,111920.0,0.83852]
[1756325026790,1.28270805,111930.0,111920.0,0.83852]
[1756325027291,0.231615,111920.0,111910.0,0.87096]
[1756325027492,1.03071605,111920.0,111910.0,0.90927]
[1756325027691,1.03071605,111920.0,111910.0,0.92742]
[1756325027991,1.02771605,111920.0,111910.0,0.92742]
[1756325028183,1.27771605,111920.0,111910.0,0.02197]
[1756325028379,0.129753,111910.0,111900.0,0.08902]
[1756325028591,0.67192405,111910.0,111900.0,0.92882]
[1756325028888,1.03272405,111910.0,111900.0,0.92882]
[1756325029287,0.176851,111900.0,111890.0,2.10951]
[1756325029486,0.176851,111900.0,111890.0,2.58827]
[1756325029487,0.69166592,111900.0,111890.0,2.58827]
[1756325030193,0.537651,111900.0,111890.0,2.58827]
[1756325030493,1.05246592,111900.0,111890.0,2.60069]
[1756325030687,1.05246592,111900.0,111890.0,1.71635]
[1756325030886,0.539651,111900.0,111890.0,2.58899]
[1756325031089,1.05446592,111900.0,111890.0,2.58899]
[1756325031288,1.05446592,111900.0,111890.0,0.94766]
[1756325031289,1.11124592,111900.0,111890.0,0.94766]
[1756325031593,1.11124592,111900.0,111890.0,0.94866]
[1756325032278,1.11124592,111900.0,111890.0,0.91219]
[1756325032483,1.11124592,111900.0,111890.0,0.02301]
[1756325032688,1.11124592,111900.0,111890.0,0.86305]
[1756325032891,1.11124592,111900.0,111890.0,0.91175]
[1756325033293,1.12029782,111900.0,111890.0,0.91175]
[1756325033691,1.37029782,111900.0,111890.0,0.84108]
[1756325034293,0.8554829,111900.0,111890.0,0.84108]
[1756325034489,1.39029782,111900.0,111890.0,0.0332]
[1756325035193,1.37029782,111900.0,111890.0,0.0332]
[1756325035396,1.37029782,111900.0,111890.0,4e-05]
[1756325035595,1.36829782,111900.0,111890.0,4e-05]
[1756325035887,1.36929782,111900.0,111890.0,4e-05]
[1756325036194,1.36929782,111900.0,111890.0,0.0322]
[1756325036394,0.8544829,111900.0,111890.0,0.08886]
[1756325036596,1.36929782,111900.0,111890.0,0.05417]
[1756325037293,1.36929782,111900.0,111890.0,0.07071]
[1756325037690,0.8544829,111900.0,111890.0,0.07071]
[1756325037896,1.36929782,111900.0,111890.0,0.07071]
[1756325038087,1.36929782,111900.0,111890.0,4e-05]
[1756325040287,2.21101782,111900.0,111890.0,4e-05]
[1756325040800,0.8544829,111900.0,111890.0,0.09013]
[1756325041097,1.36929782,111900.0,111890.0,0.07198]
[1756325041394,1.36929782,111900.0,111890.0,0.02172]
[1756325041695,1.36929782,111900.0,111890.0,4e-05]
[1756325041895,1.36929782,111900.0,111890.0,0.07134]
[1756325042196,0.8544829,111900.0,111890.0,0.07134]
[1756325042385,1.36929782,111900.0,111890.0,0.07134]
[1756325042590,1.36929782,111900.0,111890.0,0.05544]
[1756325042890,1.11929782,111900.0,111890.0,0.03762]
[1756325043099,1.11929782,111900.0,111890.0,0.10785]
[1756325044306,0.2436829,111900.0,111890.0,0.4596285]
[1756325044493,0.2436829,111900.0,111890.0,0.37027]
[1756325044694,0.14407,111900.0,111890.0,0.4596285]
[1756325044894,0.11043,111900.0,111890.0,0.4596285]
[1756325045097,0.04542,111900.0,111890.0,0.4596285]
[1756325045299,0.2321305,111900.0,111890.0,0.37027]
[1756325045600,0.2321305,111900.0,111890.0,1.21235]
[1756325045798,0.14278,111900.0,111890.0,1.3017085]
[1756325045997,0.08606,111900.0,111890.0,1.3017085]
[1756325046198,0.1754105,111900.0,111890.0,1.3017085]
[1756325046403,0.2321305,111900.0,111890.0,1.19993]
[1756325046700,0.74694542,111900.0,111890.0,0.35785]
[1756325046896,0.2321305,111900.0,111890.0,1.21247]
[1756325047094,0.2321305,111900.0,111890.0,1.20181]
[1756325047400,0.2321305,111900.0,111890.0,1.21423]
[1756325047996,0.74694542,111900.0,111890.0,1.21427]
[1756325048197,0.2321305,111900.0,111890.0,1.21427]
[1756325048393,0.74694542,111900.0,111890.0,1.21427]
[1756325048597,0.2321305,111900.0,111890.0,1.21427]
[1756325048798,0.74694542,111900.0,111890.0,1.21427]
[1756325049296,0.67140184,111900.0,111890.0,1.21427]
[1756325049999,0.67140184,111900.0,111890.0,1.3036285]
[1756325050205,0.64832184,111900.0,111890.0,1.3036285]
[1756325050396,0.52533134,111900.0,111890.0,1.3036285]
[1756325050697,0.001,111900.0,111890.0,2.10369984]
[1756325051703,0.001,111900.0,111890.0,1.6644285]
[1756325051904,0.001,111900.0,111890.0,2.10369984]
[1756325052600,0.0001,111910.0,111900.0,0.2097504]
[1756325052809,0.67099374,111910.0,111900.0,1.4133904]
[1756325052995,0.69655139,111910.0,111900.0,1.4133904]
[1756325053506,0.69655139,111910.0,111900.0,1.4009704]
[1756325053507,0.70549442,111910.0,111900.0,1.4009704]
[1756325053805,0.70649442,111910.0,111900.0,1.4009704]
[1756325054303,0.70649442,111910.0,111900.0,0.5581304]
[1756325054495,1.06929442,111910.0,111900.0,1.0524504]
[1756325055106,1.06929442,111910.0,111900.0,1.0525304]
[1756325055602,1.06929442,111910.0,111900.0,1.0522904]
[1756325057306,1.06929442,111910.0,111900.0,0.1973304]
[1756325057708,1.06929442,111910.0,111900.0,0.03758]
[1756325057709,1.31929442,111910.0,111900.0,0.03758]
[1756325058007,1.67929442,111910.0,111900.0,0.85432]
[1756325058205,1.31929442,111910.0,111900.0,0.85432]
[1756325058404,0.2317304,111900.0,111890.0,0.05564]
[1756325058707,1.42735939,111900.0,111890.0,0.05544]
[1756325058908,1.67735939,111900.0,111890.0,4e-05]
[1756325059510,1.32735939,111900.0,111890.0,4e-05]
[1756325061207,0.88808805,111900.0,111890.0,4e-05]
[1756325061399,1.32735939,111900.0,111890.0,4e-05]
[1756325061605,1.30735939,111900.0,111890.0,0.07134]
[1756325061910,1.30835939,111900.0,111890.0,0.05544]
[1756325062213,1.30835939,111900.0,111890.0,4e-05]
[1756325062604,1.60835939,111900.0,111890.0,4e-05]
[1756325062812,1.6563036,111900.0,111890.0,4e-05]
[1756325063115,1.7363036,111900.0,111890.0,4e-05]
[1756325063306,2.12763073,111900.0,111890.0,4e-05]
[1756325063507,1.11028108,111890.0,111880.0,0.0002]
[1756325063714,0.2317464,111880.0,111870.0,0.0002]
[1756325064009,0.2315544,111870.0,111860.0,0.08945]
[1756325064310,1.05718339,111870.0,111860.0,0.94265]
[1756325064710,1.05618339,111870.0,111860.0,0.94253]
[1756325065307,1.05618339,111870.0,111860.0,0.94353]
[1756325065708,1.05618339,111870.0,111860.0,0.96206]
[1756325066314,1.05618339,111870.0,111860.0,0.96306]
[1756325066907,1.05618339,111870.0,111860.0,1.0524425]
[1756325067113,1.05618339,111870.0,111860.0,1.0648625]
[1756325067513,1.05618339,111870.0,111860.0,1.0524425]
[1756325067708,0.61691205,111870.0,111860.0,1.0524425]
[1756325068113,1.05618339,111870.0,111860.0,0.96306]
[1756325068517,1.05618339,111870.0,111860.0,0.09145]
[1756325068713,1.05618339,111870.0,111860.0,0.94429]
[1756325069919,1.05618339,111870.0,111860.0,0.92614]
[1756325070314,1.05618339,111870.0,111860.0,0.92727]
[1756325070917,1.05618339,111870.0,111860.0,0.94542]
[1756325071329,1.05618339,111870.0,111860.0,0.96361]
[1756325071720,0.61691205,111870.0,111860.0,0.96361]
[1756325072021,1.05618339,111870.0,111860.0,0.96361]
[1756325072221,1.03062574,111870.0,111860.0,0.96361]
[1756325074017,1.03062574,111870.0,111860.0,0.11077]
[1756325074218,0.5913544,111870.0,111860.0,0.002]
[1756325074517,1.03062574,111870.0,111860.0,0.07535]
[1756325074919,1.03062574,111870.0,111860.0,0.0935]
[1756325075119,1.03062574,111870.0,111860.0,0.07535]
[1756325075720,1.0502248,111870.0,111860.0,0.8554]
[1756325075920,1.0502248,111870.0,111860.0,0.002]
[1756325076121,1.0502248,111870.0,111860.0,0.85504]
[1756325076616,1.0502248,111870.0,111860.0,0.002]
[1756325078132,1.3002248,111870.0,111860.0,0.002]
[1756325078430,1.6702248,111870.0,111860.0,0.002]
[1756325078631,1.5902248,111870.0,111860.0,0.002]
[1756325079532,1.5902248,111870.0,111860.0,0.001]
[1756325079925,1.6502248,111870.0,111860.0,0.001]
[1756325080126,1.6302248,111870.0,111860.0,0.001]
[1756325080426,0.0893825,111860.0,111850.0,0.5589]
[1756325080638,1.03103384,111860.0,111850.0,0.63215]
[1756325081329,1.03103384,111860.0,111850.0,0.6503]
[1756325081830,1.03103384,111860.0,111850.0,0.6523]
[1756325082033,1.03103384,111860.0,111850.0,0.6533]
[1756325082324,0.5917625,111860.0,111850.0,0.003]
[1756325082526,1.03103384,111860.0,111850.0,0.0415]
[1756325082728,1.03103384,111860.0,111850.0,0.07635]
[1756325083128,0.5917625,111860.0,111850.0,0.11269]
[1756325083429,1.03103384,111860.0,111850.0,0.11269]
[1756325083930,1.03997105,111860.0,111850.0,0.11269]
[1756325084329,0.16452971,111860.0,111850.0,0.5753004]
[1756325084531,0.04349,111860.0,111850.0,1.26457174]
[1756325085030,0.1328724,111860.0,111850.0,1.26457174]
[1756325085232,0.02836,111860.0,111850.0,1.26457174]
[1756325086132,0.1177424,111860.0,111850.0,1.26457174]
[1756325087028,0.01969906,111870.0,111860.0,0.2114925]
[1756325087232,0.01959906,111870.0,111860.0,1.86292384]
[1756325087434,0.04795906,111870.0,111860.0,1.86292384]
[1756325087731,0.13733356,111870.0,111860.0,1.86292384]
[1756325088330,0.13733356,111870.0,111860.0,1.4236525]
[1756325088531,0.13733356,111870.0,111860.0,1.86292384]
[1756325089035,0.04795906,111870.0,111860.0,1.86292384]
[1756325089232,0.13733356,111870.0,111860.0,1.86292384]
[1756325089837,0.13733356,111870.0,111860.0,1.4236525]
[1756325090038,0.13733356,111870.0,111860.0,1.86292384]
[1756325090438,0.1742215,111880.0,111870.0,0.2114845]
[1756325090636,0.2310515,111880.0,111870.0,0.2114845]
[1756325091138,0.67032284,111880.0,111870.0,0.2114845]
[1756325091640,0.67132284,111880.0,111870.0,0.2114845]
[1756325091839,0.67232284,111880.0,111870.0,0.2114845]
[1756325092941,0.2001666,111880.0,111870.0,0.90075584]
[1756325093142,0.06831,111880.0,111870.0,0.65075584]
[1756325093442,0.1349566,111880.0,111870.0,1.50535584]
[1756325093639,0.1576766,111880.0,111870.0,0.65075584]
[1756325093844,0.67231794,111880.0,111870.0,0.10969]
[1756325094049,0.1349566,111880.0,111870.0,1.0664046]
[1756325094236,0.2330466,111880.0,111870.0,0.65075594]
[1756325094436,0.2330466,111880.0,111870.0,1.0769646]
[1756325094636,0.67231794,111880.0,111870.0,1.0769646]
[1756325094937,0.04559,111880.0,111870.0,0.2114846]
[1756325095244,0.04559,111880.0,111870.0,1.4379246]
[1756325095839,0.04559,111880.0,111870.0,2.12719594]
[1756325096038,0.03046,111880.0,111870.0,2.12719594]
[1756325096946,0.03046,111880.0,111870.0,1.6879246]
[1756325097147,0.03046,111880.0,111870.0,2.12723594]
[1756325098043,0.1198266,111880.0,111870.0,0.90079594]
[1756325098243,0.1767566,111880.0,111870.0,2.12631594]
[1756325098444,0.1767566,111880.0,111870.0,2.12587594]
[1756325098946,0.03049,111880.0,111870.0,2.12587594]
[1756325099141,0.03049,111880.0,111870.0,1.87587594]
[1756325099342,0.03049,111880.0,111870.0,1.88383594]
[1756325099542,0.08702,111880.0,111870.0,1.88383594]
[1756325100046,1.58702,111880.0,111870.0,1.88383594]
[1756325100241,1.53049,111880.0,111870.0,1.01159594]
[1756325100448,1.53049,111880.0,111870.0,1.88323594]
[1756325100636,1.7341267,111880.0,111870.0,1.4439646]
[1756325100842,1.7341267,111880.0,111870.0,1.4315446]
[1756325101049,1.7341267,111880.0,111870.0,1.88323594]
[1756325101242,1.53049,111880.0,111870.0,2.13323594]
[1756325101447,0.0021,111880.0,111870.0,1.26159594]
[1756325101637,0.0021,111880.0,111870.0,2.13351594]
[1756325101840,0.03049,111880.0,111870.0,2.13351594]
[1756325103946,0.0021,111880.0,111870.0,2.13351594]
[1756325104146,0.0021,111880.0,111870.0,1.26159594]
[1756325104345,0.03049,111880.0,111870.0,0.8223246]
[1756325104548,0.2341265,111880.0,111870.0,1.6936446]
[1756325104847,0.03049,111880.0,111870.0,1.26159594]
[1756325105049,0.03049,111880.0,111870.0,2.13291594]
[1756325105238,0.0021,111880.0,111870.0,2.13291594]
[1756325105440,0.02839,111900.0,111890.0,0.2079787]
[1756325105645,0.1177407,111900.0,111890.0,1.51997004]
[1756325105846,0.1742707,111900.0,111890.0,1.88077004]
[1756325106147,0.1742707,111900.0,111890.0,1.4413387]
[1756325106351,0.2320107,111900.0,111890.0,1.4413387]
[1756325106551,0.2320107,111900.0,111890.0,1.88061004]
[1756325106751,0.03039,111900.0,111890.0,1.88061004]
[1756325107353,0.1177407,111900.0,111890.0,1.00805004]
[1756325107553,0.1508307,111900.0,111890.0,1.88045004]
[1756325107753,0.1752707,111900.0,111890.0,1.88045004]
[1756325108154,0.1187407,111900.0,111890.0,1.88932273]
[1756325108355,1.53039,111900.0,111890.0,1.88932273]
[1756325109046,1.6762707,111900.0,111890.0,1.87921004]
[1756325109253,1.7340107,111900.0,111890.0,1.4398187]
[1756325109444,1.7340107,111900.0,111890.0,1.87909004]
[1756325109643,1.7340107,111900.0,111890.0,1.00809004]
[1756325109844,2.17328204,111900.0,111890.0,0.1955987]
[1756325110153,2.17328204,111900.0,111890.0,1.0664387]
[1756325110658,1.7340107,111900.0,111890.0,1.0788587]
[1756325110854,2.17328204,111900.0,111890.0,1.0664387]
[1756325111153,1.7340107,111900.0,111890.0,1.0788987]
[1756325111954,1.7340107,111900.0,111890.0,0.2080187]
[1756325112151,2.78408204,111900.0,111890.0,1.0362987]
[1756325112354,2.78408204,111900.0,111890.0,0.0893987]
[1756325112555,2.78408204,111900.0,111890.0,0.87048]
[1756325113258,2.78408204,111900.0,111890.0,0.87032]
[1756325113555,3.12408204,111900.0,111890.0,4e-05]
[1756325113752,0.2320187,111890.0,111880.0,0.0001]
[1756325114059,0.2320267,111880.0,111870.0,0.5565546]
[1756325114251,0.67129804,111880.0,111870.0,0.95811]
[1756325114750,0.67129804,111880.0,111870.0,1.0474847]
[1756325114949,0.92129804,111880.0,111870.0,0.8712]
[1756325115549,0.92129804,111880.0,111870.0,0.9615747]
[1756325115852,0.92129804,111880.0,111870.0,0.9913547]
[1756325116056,0.92129804,111880.0,111870.0,1.0073347]
[1756325116253,0.4820267,111880.0,111870.0,1.0083347]
[1756325116555,0.92129804,111880.0,111870.0,1.0073347]
[1756325116756,0.92129804,111880.0,111870.0,0.95879]
[1756325116956,0.92129804,111880.0,111870.0,0.93964]
[1756325117149,0.92129804,111880.0,111870.0,4e-05]
[1756325117351,0.4820267,111880.0,111870.0,0.8857]
[1756325117655,0.92129804,111880.0,111870.0,0.86972]
[1756325117857,0.92129804,111880.0,111870.0,0.86964]
[1756325118058,0.92129804,111880.0,111870.0,4e-05]
[1756325118255,0.92129804,111880.0,111870.0,0.86968]
[1756325118558,0.92229804,111880.0,111870.0,4e-05]
[1756325118758,1.28409804,111880.0,111870.0,0.86936]
[1756325119455,1.28409804,111880.0,111870.0,4e-05]
[1756325119655,1.28409804,111880.0,111870.0,0.86936]
[1756325119855,1.28409804,111880.0,111870.0,4e-05]
[1756325120056,1.28409804,111880.0,111870.0,0.86912]
[1756325120454,1.72336938,111880.0,111870.0,4e-05]
[1756325120849,1.72336938,111880.0,111870.0,0.86872]
[1756325122354,1.72336938,111880.0,111870.0,0.83372]
[1756325123863,0.2320346,111870.0,111860.0,0.07113]
[1756325124062,1.03210594,111870.0,111860.0,0.95808]
[1756325124356,1.03210594,111870.0,111860.0,0.89174]
[1756325124865,1.03210594,111870.0,111860.0,0.93957]
[1756325125666,1.03210594,111870.0,111860.0,0.90752]
[1756325125864,1.28210594,111870.0,111860.0,0.0001]
[1756325126365,0.2320426,111860.0,111850.0,0.86814]
[1756325126561,1.03211394,111860.0,111850.0,4e-05]
[1756325126755,1.03211394,111860.0,111840.0,1.75002]
[1756325126756,0.1376806,111850.0,111840.0,0.86814]
[1756325126955,1.5004697,111850.0,111840.0,0.86804]
[1756325127260,0.2320586,111840.0,111830.0,0.0001]
[1756325127467,0.2320666,111830.0,111820.0,0.95752]
[1756325127663,0.2320666,111830.0,111820.0,0.86824]
[1756325127664,1.03113794,111830.0,111820.0,0.86824]
[1756325127867,1.03113794,111830.0,111820.0,0.86916]
[1756325128163,0.2320746,111820.0,111810.0,0.0001]
[1756325128366,0.1999926,111810.0,111800.0,0.64834]
[1756325128563,0.1465806,111800.0,111790.0,0.08937044]
[1756325128769,0.67059194,111800.0,111790.0,0.97778]
[1756325129064,0.66759194,111800.0,111790.0,0.10838]
[1756325129258,0.66559194,111800.0,111790.0,0.9919]
[1756325129660,1.02639194,111800.0,111790.0,0.9919]
[1756325129865,0.5871206,111800.0,111790.0,0.9919]
[1756325130066,1.02639194,111800.0,111790.0,0.9919]
[1756325130263,0.5871206,111800.0,111790.0,0.97938]
[1756325130567,1.02639194,111800.0,111790.0,0.97938]
[1756325131167,0.5881206,111800.0,111790.0,0.9919]
[1756325131862,0.5881206,111800.0,111790.0,0.9929]
[1756325132061,0.99527194,111800.0,111790.0,0.9929]
[1756325132266,0.99527194,111800.0,111790.0,0.98038]
[1756325132267,1.02739194,111800.0,111790.0,0.98038]
[1756325132567,1.02739194,111800.0,111790.0,0.94303]
[1756325132768,1.03629501,111800.0,111790.0,0.96118]
[1756325133270,0.59702367,111800.0,111790.0,0.98038]
[1756325133563,1.03629501,111800.0,111790.0,0.98038]
[1756325133964,1.02739194,111800.0,111790.0,0.98038]
[1756325135364,1.02739194,111800.0,111790.0,0.98334]
[1756325135964,0.5881206,111800.0,111790.0,0.98334]
[1756325136175,1.02739194,111800.0,111790.0,0.10938]
[1756325136476,1.02739194,111800.0,111790.0,0.9829]
[1756325136965,1.02739194,111800.0,111790.0,0.98278]
[1756325137363,0.63947074,111800.0,111790.0,1.0847374]
[1756325137573,0.03079,111800.0,111790.0,2.13480874]
[1756325137761,0.1773694,111800.0,111790.0,0.7327]
[1756325137970,0.67159074,111800.0,111790.0,1.59334]
[1756325138171,1.47166208,111800.0,111790.0,0.94454]
[1756325138367,2.09166208,111800.0,111790.0,0.001]
[1756325138675,2.03166208,111800.0,111790.0,0.001]
[1756325139471,0.2313279,111790.0,111780.0,0.0001]
[1756325139770,0.2313279,111790.0,111750.0,0.4943057]
[1756325139771,0.1787319,111760.0,111750.0,0.873]
[1756325140067,0.1787319,111760.0,111750.0,0.92663]
[1756325140068,0.97880324,111760.0,111750.0,0.92663]
[1756325140270,1.79069458,111760.0,111750.0,0.02211]
[1756325140472,0.0894779,111740.0,111730.0,0.06]
[1756325140775,0.67063924,111740.0,111730.0,1.02138]
[1756325141170,0.2313679,111740.0,111730.0,1.02138]
[1756325141370,0.02979,111740.0,111730.0,1.3733859]
[1756325141570,0.02979,111740.0,111730.0,2.25041387]
[1756325141771,0.2101468,111750.0,111740.0,0.1063]
[1756325141972,0.74569477,111750.0,111740.0,0.1063]
[1756325142168,0.2313682,111740.0,111730.0,0.06]
[1756325142476,1.10839617,111740.0,111730.0,0.95859]
[1756325142671,1.10839617,111740.0,111730.0,0.96059]
[1756325143072,1.10839617,111740.0,111730.0,1.00743]
[1756325143268,1.10839617,111740.0,111730.0,0.064]
[1756325143476,1.12665024,111740.0,111730.0,0.064]
[1756325144070,1.12665024,111740.0,111730.0,0.13095]
[1756325144378,0.1770322,111710.0,111700.0,1.00364538]
[1756325144577,0.5378322,111710.0,111700.0,1.00364538]
[1756325144779,0.5378322,111710.0,111700.0,1.38880538]
[1756325144780,0.08753,111710.0,111700.0,1.38880538]
[1756325145173,0.04538,111710.0,111700.0,1.47831558]
[1756325145377,0.4502877,111730.0,111700.0,1.84284335]
[1756325145575,0.02979,111720.0,111710.0,0.63604797]
[1756325145779,0.02979,111720.0,111710.0,1.52656797]
[1756325146072,0.02979,111720.0,111710.0,1.01034]
[1756325146480,1.10725605,111730.0,111720.0,0.1045]
[1756325146675,0.61024808,111730.0,111720.0,0.1063]
[1756325146868,1.12647605,111730.0,111720.0,0.02211]
[1756325147069,0.1770242,111720.0,111710.0,0.58462]
[1756325147284,1.05405217,111720.0,111710.0,0.97918]
[1756325147578,0.1532016,111710.0,111700.0,0.98289538]
[1756325147777,1.05305957,111710.0,111700.0,1.00064538]
[1756325148080,1.05305957,111710.0,111700.0,0.07373538]
[1756325148379,1.30305957,111710.0,111700.0,8e-08]
[1756325148582,0.1770397,111700.0,111690.0,0.0002]